[Event "*** Titled Tuesday Blitz"]
[Site "Chess.com"]
[Date "2020.04.07"]
[Round "6"]
[White "Haykos"]
[Black "varacalli"]
[Result "0-1"]
[WhiteElo "2588"]
[BlackElo "2412"]
[TimeControl "180+1"]
[EndTime "14:09:48 PDT"]
[Termination "varacalli won by resignation"]

1. e4 {[%clk 0:03:00.9]} 1... e5 {[%clk 0:02:58.1]} 2. Nf3 {[%clk 0:03:01.4]}
2... Nc6 {[%clk 0:02:58.1]} 3. Bc4 {[%clk 0:03:02.1]} 3... Bc5 {[%clk
0:02:57.4]} 4. d3 {[%clk 0:03:02.5]} 4... Nf6 {[%clk 0:02:56.9]} 5. O-O {[%clk
0:03:03]} 5... d6 {[%clk 0:02:57.3]} 6. c3 {[%clk 0:03:02]} 6... Bb6 {[%clk
0:02:57.3]} 7. Re1 {[%clk 0:03:02.4]} 7... h6 {[%clk 0:02:57.1]} 8. Bb3 {[%clk
0:03:01.9]} 8... Ne7 {[%clk 0:02:57.4]} 9. h3 {[%clk 0:02:59.9]} 9... Ng6 {[%clk
0:02:57.4]} 10. d4 {[%clk 0:03:00.5]} 10... O-O {[%clk 0:02:55.8]} 11. Nbd2
{[%clk 0:02:50.7]} 11... Nh5 {[%clk 0:02:50.7]} 12. Nc4 {[%clk 0:02:50.7]} 12...
Qf6 {[%clk 0:02:41.2]} 13. Nxb6 {[%clk 0:02:33.5]} 13... axb6 {[%clk 0:02:40.2]}
14. Nxe5 {[%clk 0:02:28.3]} 14... Nxe5 {[%clk 0:02:15.8]} 15. Qxh5 {[%clk
0:02:27.7]} 15... Ng6 {[%clk 0:02:14.4]} 16. e5 {[%clk 0:02:23.7]} 16... dxe5
{[%clk 0:02:12.3]} 17. dxe5 {[%clk 0:02:24.6]} 17... Qf5 {[%clk 0:02:12.6]} 18.
Qxf5 {[%clk 0:02:24.7]} 18... Bxf5 {[%clk 0:02:13.5]} 19. g4 {[%clk 0:02:24.9]}
19... Be6 {[%clk 0:02:12.9]} 20. f4 {[%clk 0:02:24.2]} 20... Bxb3 {[%clk
0:02:10.2]} 21. f5 {[%clk 0:02:24.8]} 21... Ne7 {[%clk 0:01:55.8]} 22. Bxh6
{[%clk 0:02:24.9]} 22... gxh6 {[%clk 0:01:49.2]} 23. axb3 {[%clk 0:02:24.8]}
23... Rxa1 {[%clk 0:01:49.5]} 24. Rxa1 {[%clk 0:02:25.7]} 24... Nc6 {[%clk
0:01:50]} 25. Kf2 {[%clk 0:02:21.1]} 25... Re8 {[%clk 0:01:46.3]} 26. Rd1 {[%clk
0:02:05.4]} 26... Rxe5 {[%clk 0:01:44.8]} 27. b4 {[%clk 0:02:01.9]} 27... Kg7
{[%clk 0:01:38]} 28. Kf3 {[%clk 0:02:01]} 28... Re7 {[%clk 0:01:35.1]} 29. Rd2
{[%clk 0:01:56.9]} 29... Rd7 {[%clk 0:01:27.5]} 30. Re2 {[%clk 0:01:42.3]} 30...
Kf8 {[%clk 0:01:19.2]} 31. h4 {[%clk 0:01:42.3]} 31... f6 {[%clk 0:01:16.4]} 32.
Kf4 {[%clk 0:01:37.2]} 32... Kf7 {[%clk 0:01:16.6]} 33. g5 {[%clk 0:01:34.4]}
33... hxg5+ {[%clk 0:01:16.4]} 34. hxg5 {[%clk 0:01:35.3]} 34... fxg5+ {[%clk
0:01:17.3]} 35. Kxg5 {[%clk 0:01:36.2]} 35... Rd1 {[%clk 0:01:15.3]} 36. b5
{[%clk 0:01:34.7]} 36... Ne7 {[%clk 0:01:09]} 37. Rf2 {[%clk 0:01:28.6]} 37...
Rg1+ {[%clk 0:01:05.8]} 38. Kf4 {[%clk 0:01:28.9]} 38... Kf6 {[%clk 0:01:05.1]}
39. Rh2 {[%clk 0:01:02.1]} 39... Rf1+ {[%clk 0:00:57.5]} 40. Ke4 {[%clk
0:01:02]} 40... Nxf5 {[%clk 0:00:53.2]} 41. Rh7 {[%clk 0:00:58.2]} 41... Ne7
{[%clk 0:00:49.7]} 42. Rh6+ {[%clk 0:00:58.1]} 42... Kf7 {[%clk 0:00:48.5]} 43.
Rh7+ {[%clk 0:00:57.6]} 43... Ke8 {[%clk 0:00:47]} 44. Rh2 {[%clk 0:00:52.2]}
44... Re1+ {[%clk 0:00:43.2]} 45. Kd4 {[%clk 0:00:51]} 45... Kd7 {[%clk
0:00:42.8]} 46. Rd2 {[%clk 0:00:49.1]} 46... Rg1 {[%clk 0:00:40.9]} 47. Ke5+
{[%clk 0:00:48.5]} 47... Ke8 {[%clk 0:00:40.9]} 48. Kf6 {[%clk 0:00:45.7]} 48...
Rf1+ {[%clk 0:00:39.2]} 49. Ke6 {[%clk 0:00:46.1]} 49... Re1+ {[%clk 0:00:39.4]}
50. Kf6 {[%clk 0:00:46.6]} 50... Nc8 {[%clk 0:00:28.1]} 51. Rh2 {[%clk 0:00:37]}
51... Nd6 {[%clk 0:00:24.9]} 52. Rh8+ {[%clk 0:00:37.1]} 52... Kd7 {[%clk
0:00:25]} 53. Rh7+ {[%clk 0:00:37.6]} 53... Kd8 {[%clk 0:00:25.4]} 54. Rh8+
{[%clk 0:00:38]} 54... Ne8+ {[%clk 0:00:25.7]} 55. Kf7 {[%clk 0:00:37.2]} 55...
Rf1+ {[%clk 0:00:26]} 56. Ke6 {[%clk 0:00:37.1]} 56... Rf6+ {[%clk 0:00:26.3]}
57. Ke5 {[%clk 0:00:36.8]} 57... Rg6 {[%clk 0:00:26.3]} 58. c4 {[%clk
0:00:30.4]} 58... Rg2 {[%clk 0:00:23.8]} 59. b3 {[%clk 0:00:24.4]} 59... Rg3
{[%clk 0:00:23.7]} 60. b4 {[%clk 0:00:18.4]} 60... Rg4 {[%clk 0:00:22.8]} 61.
Kd5 {[%clk 0:00:17.9]} 61... Rg5+ {[%clk 0:00:23.3]} 62. Kd4 {[%clk 0:00:18]}
62... Kd7 {[%clk 0:00:23.6]} 63. Rh7+ {[%clk 0:00:18]} 63... Rg7 {[%clk
0:00:24.1]} 64. Rh4 {[%clk 0:00:17.5]} 64... Nd6 {[%clk 0:00:24.6]} 65. Rf4
{[%clk 0:00:16.2]} 65... c6 {[%clk 0:00:23.3]} 66. bxc6+ {[%clk 0:00:16.1]}
66... Kxc6 {[%clk 0:00:23.8]} 67. b5+ {[%clk 0:00:14.2]} 67... Kd7 {[%clk
0:00:23.1]} 68. Kd5 {[%clk 0:00:11.9]} 68... Rg5+ {[%clk 0:00:23]} 69. Kd4
{[%clk 0:00:12.5]} 69... Rc5 {[%clk 0:00:23.4]} 70. Kd3 {[%clk 0:00:12.9]} 70...
Rxc4 {[%clk 0:00:22.2]} 71. Rxc4 {[%clk 0:00:13.2]} 71... Nxc4 {[%clk
0:00:23.1]} 72. Kxc4 {[%clk 0:00:14.1]} 72... Ke6 {[%clk 0:00:23.4]} 73. Kd4
{[%clk 0:00:11.4]} 73... Kd6 {[%clk 0:00:23.9]} 74. Kc4 {[%clk 0:00:07.5]} 74...
Ke5 {[%clk 0:00:23.8]} 75. Kc3 {[%clk 0:00:07.4]} 75... Kd5 {[%clk 0:00:23.8]}
76. Kd3 {[%clk 0:00:08.3]} 76... Kc5 {[%clk 0:00:24.1]} 77. Kc3 {[%clk
0:00:09.2]} 77... Kxb5 {[%clk 0:00:25]} 78. Kb3 {[%clk 0:00:10.1]} 78... Kc5
{[%clk 0:00:25.9]} 79. Kc3 {[%clk 0:00:10.6]} 79... b5 {[%clk 0:00:26.8]} 80.
Kb3 {[%clk 0:00:11.2]} 80... b6 {[%clk 0:00:27.7]} 81. Kb2 {[%clk 0:00:12.1]}
81... b4 {[%clk 0:00:28.6]} 82. Kb3 {[%clk 0:00:12.8]} 82... Kb5 {[%clk
0:00:29.5]} 83. Kb2 {[%clk 0:00:13.3]} 83... Kc4 {[%clk 0:00:30.4]} 84. Kc2
{[%clk 0:00:13.8]} 84... b3+ {[%clk 0:00:31.3]} 85. Kb2 {[%clk 0:00:14.4]} 85...
Kb4 {[%clk 0:00:32.2]} 86. Kb1 {[%clk 0:00:14.9]} 86... Kc3 {[%clk 0:00:32.4]}
87. Kc1 {[%clk 0:00:15.3]} 87... b2+ {[%clk 0:00:33]} 88. Kb1 {[%clk 0:00:15.3]}
88... b5 {[%clk 0:00:33.7]} 0-1

[Event "*** Titled Tuesday Blitz"]
[Site "Chess.com"]
[Date "2020.04.07"]
[Round "6"]
[White "praveenb2002"]
[Black "ChessQueen"]
[Result "1-0"]
[WhiteElo "2629"]
[BlackElo "2766"]
[TimeControl "180+1"]
[EndTime "14:09:56 PDT"]
[Termination "praveenb2002 won on time"]

1. d4 {[%clk 0:03:00.9]} 1... Nf6 {[%clk 0:02:59.4]} 2. c4 {[%clk 0:03:01.1]}
2... e6 {[%clk 0:02:59.1]} 3. Nf3 {[%clk 0:03:00.1]} 3... b6 {[%clk 0:02:59.5]}
4. g3 {[%clk 0:02:59.4]} 4... Bb7 {[%clk 0:02:59.6]} 5. Bg2 {[%clk 0:02:59.8]}
5... Be7 {[%clk 0:03:00.2]} 6. O-O {[%clk 0:02:58.5]} 6... O-O {[%clk
0:03:00.8]} 7. Nc3 {[%clk 0:02:58.2]} 7... Ne4 {[%clk 0:03:00.9]} 8. Bd2 {[%clk
0:02:55.4]} 8... d6 {[%clk 0:03:00.4]} 9. d5 {[%clk 0:02:54]} 9... Nxd2 {[%clk
0:02:58.2]} 10. Nxd2 {[%clk 0:02:52.6]} 10... e5 {[%clk 0:02:58.5]} 11. f4
{[%clk 0:02:52.5]} 11... exf4 {[%clk 0:02:47.8]} 12. gxf4 {[%clk 0:02:52.9]}
12... f5 {[%clk 0:02:45.2]} 13. e4 {[%clk 0:02:50.7]} 13... fxe4 {[%clk
0:02:45]} 14. Ndxe4 {[%clk 0:02:50.3]} 14... Bc8 {[%clk 0:02:44.2]} 15. Ng3
{[%clk 0:02:48]} 15... Nd7 {[%clk 0:02:38.8]} 16. Nb5 {[%clk 0:02:45.8]} 16...
Bf6 {[%clk 0:02:26.9]} 17. Nd4 {[%clk 0:02:33.9]} 17... Bxd4+ {[%clk 0:02:26.9]}
18. Qxd4 {[%clk 0:02:33.8]} 18... Qf6 {[%clk 0:02:27.5]} 19. Qd2 {[%clk
0:02:29.3]} 19... a5 {[%clk 0:02:23.3]} 20. f5 {[%clk 0:02:28.1]} 20... Ne5
{[%clk 0:02:09.1]} 21. b3 {[%clk 0:02:27.4]} 21... Bd7 {[%clk 0:01:54.9]} 22.
Rae1 {[%clk 0:02:26.9]} 22... Rae8 {[%clk 0:01:54.2]} 23. Re4 {[%clk 0:02:19.8]}
23... Kh8 {[%clk 0:01:51.5]} 24. Nh5 {[%clk 0:02:15]} 24... Qh6 {[%clk
0:01:48.7]} 25. Qxh6 {[%clk 0:02:14]} 25... gxh6 {[%clk 0:01:49.6]} 26. Ng3
{[%clk 0:02:10.1]} 26... Rf6 {[%clk 0:01:46]} 27. Ref4 {[%clk 0:02:05.6]} 27...
Ref8 {[%clk 0:01:42.2]} 28. Be4 {[%clk 0:02:04.3]} 28... Be8 {[%clk 0:01:39.7]}
29. a3 {[%clk 0:02:03.3]} 29... Rg8 {[%clk 0:01:37.7]} 30. Rh4 {[%clk
0:01:45.8]} 30... a4 {[%clk 0:01:34.4]} 31. Bc2 {[%clk 0:01:40.1]} 31... axb3
{[%clk 0:01:31.7]} 32. Bxb3 {[%clk 0:01:41]} 32... h5 {[%clk 0:01:08.1]} 33. Kh1
{[%clk 0:01:35.5]} 33... Rg4 {[%clk 0:01:01.9]} 34. Rf4 {[%clk 0:01:22.8]} 34...
Rxh4 {[%clk 0:00:52.5]} 35. Rxh4 {[%clk 0:01:23]} 35... Rf8 {[%clk 0:00:43.5]}
36. Rf4 {[%clk 0:01:20.2]} 36... Kg7 {[%clk 0:00:42.5]} 37. Kg2 {[%clk
0:01:18.4]} 37... Kh6 {[%clk 0:00:39.6]} 38. h4 {[%clk 0:01:18.1]} 38... Kg7
{[%clk 0:00:38.5]} 39. Bd1 {[%clk 0:01:16.7]} 39... Kh6 {[%clk 0:00:38.3]} 40.
Be2 {[%clk 0:01:15.8]} 40... Bf7 {[%clk 0:00:38.3]} 41. Ne4 {[%clk 0:01:14.2]}
41... Ra8 {[%clk 0:00:37.3]} 42. Ng5 {[%clk 0:01:06.3]} 42... Rxa3 {[%clk
0:00:37.1]} 43. Ne6 {[%clk 0:01:06.6]} 43... Ra2 {[%clk 0:00:35.4]} 44. Kf1
{[%clk 0:01:05.2]} 44... Ra1+ {[%clk 0:00:35.7]} 45. Kf2 {[%clk 0:00:59.5]}
45... Ra2 {[%clk 0:00:35.5]} 46. Ke3 {[%clk 0:00:58.8]} 46... Ra7 {[%clk
0:00:33.5]} 47. Nd8 {[%clk 0:00:46.2]} 47... Kg7 {[%clk 0:00:31.2]} 48. f6+
{[%clk 0:00:46]} 48... Kf8 {[%clk 0:00:31.2]} 49. Ne6+ {[%clk 0:00:44.6]} 49...
Ke8 {[%clk 0:00:24.9]} 50. Ng7+ {[%clk 0:00:44.4]} 50... Kd7 {[%clk 0:00:24]}
51. Bxh5 {[%clk 0:00:41.6]} 51... Ra3+ {[%clk 0:00:24.1]} 52. Ke2 {[%clk
0:00:29.7]} 52... Ra2+ {[%clk 0:00:24.5]} 53. Kd1 {[%clk 0:00:26.7]} 53... b5
{[%clk 0:00:20.6]} 54. Bxf7 {[%clk 0:00:22.8]} 54... Nxf7 {[%clk 0:00:20.3]} 55.
cxb5 {[%clk 0:00:23.5]} 55... Ra5 {[%clk 0:00:10.5]} 56. Re4 {[%clk 0:00:23.8]}
56... Ne5 {[%clk 0:00:10.9]} 57. Ne6 {[%clk 0:00:18.6]} 57... Ra1+ {[%clk
0:00:08.2]} 58. Kc2 {[%clk 0:00:18.9]} 58... Rf1 {[%clk 0:00:08.7]} 59. Rf4
{[%clk 0:00:17.6]} 59... Rxf4 {[%clk 0:00:06.2]} 60. Nxf4 {[%clk 0:00:18]} 60...
Ng4 {[%clk 0:00:06.9]} 61. f7 {[%clk 0:00:14.9]} 61... Ke7 {[%clk 0:00:06.6]}
62. Ne6 {[%clk 0:00:15.3]} 62... Kxf7 {[%clk 0:00:05.1]} 63. Nxc7 {[%clk
0:00:13.8]} 63... Ke7 {[%clk 0:00:05.7]} 64. b6 {[%clk 0:00:13.3]} 64... Kd7
{[%clk 0:00:06.3]} 65. Nb5 {[%clk 0:00:09.5]} 65... Ne3+ {[%clk 0:00:05]} 66.
Kb3 {[%clk 0:00:09.2]} 66... Kc8 {[%clk 0:00:03.3]} 67. Nxd6+ {[%clk 0:00:09.4]}
67... Kb8 {[%clk 0:00:03.9]} 68. Kb4 {[%clk 0:00:09.5]} 68... Nxd5+ {[%clk
0:00:04.2]} 69. Kb5 {[%clk 0:00:10.1]} 69... Ne7 {[%clk 0:00:02.4]} 70. Kc5
{[%clk 0:00:09]} 70... Ng6 {[%clk 0:00:02.4]} 71. Nf5 {[%clk 0:00:08.1]} 71...
h5 {[%clk 0:00:02.1]} 72. Kc6 {[%clk 0:00:07.5]} 72... Nf4 {[%clk 0:00:01.6]}
73. Nd4 {[%clk 0:00:04.3]} 73... Ng6 {[%clk 0:00:01.8]} 74. Nf3 {[%clk
0:00:04.5]} 74... Ne7+ {[%clk 0:00:01.5]} 75. Kd6 {[%clk 0:00:04.4]} 75... Nf5+
{[%clk 0:00:02.4]} 76. Kc6 {[%clk 0:00:04.1]} 76... Ne7+ {[%clk 0:00:02.6]} 77.
Kc5 {[%clk 0:00:04.6]} 77... Nf5 {[%clk 0:00:03.5]} 78. Kd5 {[%clk 0:00:04.1]}
78... Kb7 {[%clk 0:00:03.3]} 79. Kc5 {[%clk 0:00:03.4]} 79... Ng3 {[%clk
0:00:02.2]} 80. Kb5 {[%clk 0:00:03.4]} 80... Nf5 {[%clk 0:00:02.3]} 81. Ka5
{[%clk 0:00:03.5]} 81... Ng3 {[%clk 0:00:02.4]} 82. Nd4 {[%clk 0:00:03.7]} 82...
Ne4 {[%clk 0:00:02.6]} 83. Ne6 {[%clk 0:00:03.5]} 83... Nf6 {[%clk 0:00:01.2]}
84. Nc5+ {[%clk 0:00:03]} 84... Kb8 {[%clk 0:00:01.5]} 85. Ka6 {[%clk
0:00:01.9]} 1-0

[Event "*** Titled Tuesday Blitz"]
[Site "Chess.com"]
[Date "2020.04.07"]
[Round "6"]
[White "Squirlolz"]
[Black "checkmatequen"]
[Result "1-0"]
[WhiteElo "2584"]
[BlackElo "2258"]
[TimeControl "180+1"]
[EndTime "14:10:05 PDT"]
[Termination "Squirlolz won on time"]

1. e4 {[%clk 0:03:00.9]} 1... c5 {[%clk 0:02:59.5]} 2. c3 {[%clk 0:03:00.4]}
2... d5 {[%clk 0:02:58.8]} 3. exd5 {[%clk 0:03:00.6]} 3... Qxd5 {[%clk
0:02:59.7]} 4. d4 {[%clk 0:03:01.5]} 4... Nf6 {[%clk 0:02:56.4]} 5. Nf3 {[%clk
0:03:02.1]} 5... Bg4 {[%clk 0:02:54.5]} 6. dxc5 {[%clk 0:03:02.1]} 6... Qxc5
{[%clk 0:02:51.2]} 7. h3 {[%clk 0:03:01.2]} 7... Bxf3 {[%clk 0:02:49.4]} 8. Qxf3
{[%clk 0:03:01]} 8... Nc6 {[%clk 0:02:48]} 9. Na3 {[%clk 0:02:55.3]} 9... e5
{[%clk 0:02:47.3]} 10. Be3 {[%clk 0:02:46]} 10... Qa5 {[%clk 0:02:44.2]} 11. Nc4
{[%clk 0:02:40.4]} 11... Qc7 {[%clk 0:02:43.2]} 12. Bg5 {[%clk 0:02:28.6]} 12...
Be7 {[%clk 0:02:42.2]} 13. Bxf6 {[%clk 0:02:15.2]} 13... Bxf6 {[%clk 0:02:43.1]}
14. Ne3 {[%clk 0:02:15.6]} 14... O-O {[%clk 0:02:26.9]} 15. Nd5 {[%clk
0:02:15.5]} 15... Qd6 {[%clk 0:02:26.4]} 16. Nxf6+ {[%clk 0:02:15.7]} 16... Qxf6
{[%clk 0:02:22.9]} 17. Qxf6 {[%clk 0:02:15.3]} 17... gxf6 {[%clk 0:02:23.8]} 18.
Bd3 {[%clk 0:02:12.7]} 18... Rfd8 {[%clk 0:02:23.4]} 19. Ke2 {[%clk 0:02:12]}
19... Ne7 {[%clk 0:02:21.6]} 20. Rhd1 {[%clk 0:02:07.3]} 20... f5 {[%clk
0:02:21.4]} 21. Bc4 {[%clk 0:01:58.4]} 21... Rac8 {[%clk 0:02:16.3]} 22. Bb3
{[%clk 0:01:51.4]} 22... Kg7 {[%clk 0:02:14.9]} 23. a4 {[%clk 0:01:44.9]} 23...
Kf6 {[%clk 0:02:14.5]} 24. a5 {[%clk 0:01:44.9]} 24... Nc6 {[%clk 0:02:07]} 25.
Rd5 {[%clk 0:01:35.8]} 25... Ne7 {[%clk 0:01:59.1]} 26. Rxd8 {[%clk 0:01:26.9]}
26... Rxd8 {[%clk 0:02:00]} 27. Ra4 {[%clk 0:01:27.2]} 27... Nc6 {[%clk
0:01:54.9]} 28. Bc2 {[%clk 0:01:19.9]} 28... e4 {[%clk 0:01:54.6]} 29. Rc4
{[%clk 0:01:12.7]} 29... Nxa5 {[%clk 0:01:50.1]} 30. Rc7 {[%clk 0:01:13.6]}
30... b5 {[%clk 0:01:36.2]} 31. b3 {[%clk 0:00:58]} 31... a6 {[%clk 0:01:35]}
32. c4 {[%clk 0:00:46.6]} 32... bxc4 {[%clk 0:01:20]} 33. bxc4 {[%clk
0:00:47.5]} 33... Rd4 {[%clk 0:01:17.4]} 34. c5 {[%clk 0:00:40.8]} 34... Rc4
{[%clk 0:01:13.6]} 35. Kd2 {[%clk 0:00:35.3]} 35... Ke5 {[%clk 0:01:04]} 36.
Rxf7 {[%clk 0:00:30.5]} 36... Rxc5 {[%clk 0:01:03.9]} 37. Rxh7 {[%clk
0:00:30.7]} 37... Nc4+ {[%clk 0:01:04.2]} 38. Ke2 {[%clk 0:00:29.2]} 38... a5
{[%clk 0:01:03.7]} 39. Ra7 {[%clk 0:00:27.7]} 39... Rb5 {[%clk 0:01:02.6]} 40.
h4 {[%clk 0:00:24.8]} 40... Rb2 {[%clk 0:01:00.5]} 41. Kd1 {[%clk 0:00:25.1]}
41... Na3 {[%clk 0:01:00.3]} 42. Ba4 {[%clk 0:00:21.8]} 42... Rxf2 {[%clk
0:00:54.4]} 43. Rxa5+ {[%clk 0:00:21.7]} 43... Kf6 {[%clk 0:00:49.1]} 44. h5
{[%clk 0:00:16.5]} 44... Rxg2 {[%clk 0:00:46.6]} 45. Bd7 {[%clk 0:00:16.5]}
45... Rg5 {[%clk 0:00:36.7]} 46. Rxa3 {[%clk 0:00:15.7]} 46... Rxh5 {[%clk
0:00:34.5]} 47. Ra5 {[%clk 0:00:12.4]} 47... Rh1+ {[%clk 0:00:23.8]} 48. Ke2
{[%clk 0:00:12.3]} 48... Rh2+ {[%clk 0:00:24]} 49. Kf1 {[%clk 0:00:09.2]} 49...
f4 {[%clk 0:00:19]} 50. Rf5+ {[%clk 0:00:08.1]} 50... Ke7 {[%clk 0:00:19.3]} 51.
Bc6 {[%clk 0:00:07.5]} 51... e3 {[%clk 0:00:08.5]} 52. Rxf4 {[%clk 0:00:06.5]}
52... e2+ {[%clk 0:00:08.9]} 53. Ke1 {[%clk 0:00:05.8]} 53... Kd6 {[%clk
0:00:09.3]} 54. Bb5 {[%clk 0:00:05.3]} 54... Ke5 {[%clk 0:00:08.9]} 55. Rf8
{[%clk 0:00:04.8]} 55... Kd4 {[%clk 0:00:08.6]} 56. Bxe2 {[%clk 0:00:05]} 56...
Ke3 {[%clk 0:00:08.8]} 57. Re8+ {[%clk 0:00:05.5]} 57... Kd4 {[%clk 0:00:08.2]}
58. Kd2 {[%clk 0:00:06.4]} 58... Rg2 {[%clk 0:00:07.4]} 59. Kc2 {[%clk
0:00:03.3]} 59... Rh2 {[%clk 0:00:06.7]} 60. Kb3 {[%clk 0:00:03.6]} 60... Rh3+
{[%clk 0:00:06.7]} 61. Kb4 {[%clk 0:00:03.5]} 61... Re3 {[%clk 0:00:06.7]} 62.
Rd8+ {[%clk 0:00:02.9]} 62... Ke5 {[%clk 0:00:06.7]} 63. Bc4 {[%clk 0:00:03.8]}
63... Kf4 {[%clk 0:00:06.2]} 64. Kc5 {[%clk 0:00:03.7]} 64... Re5+ {[%clk
0:00:05.5]} 65. Bd5 {[%clk 0:00:03.7]} 65... Re1 {[%clk 0:00:05.8]} 66. Rf8+
{[%clk 0:00:03]} 66... Ke3 {[%clk 0:00:06]} 67. Re8+ {[%clk 0:00:02.2]} 67...
Kd2 {[%clk 0:00:06.3]} 68. Rh8 {[%clk 0:00:03.1]} 68... Re3 {[%clk 0:00:05.6]}
69. Bc4 {[%clk 0:00:02.7]} 69... Rg3 {[%clk 0:00:04.9]} 70. Kd4 {[%clk
0:00:03.1]} 70... Rg4+ {[%clk 0:00:04.4]} 71. Kc5 {[%clk 0:00:03.7]} 71... Rg5+
{[%clk 0:00:04.8]} 72. Kb4 {[%clk 0:00:03.5]} 72... Ke3 {[%clk 0:00:05.2]} 73.
Rh4 {[%clk 0:00:03.5]} 73... Rg3 {[%clk 0:00:04.5]} 74. Kc5 {[%clk 0:00:03.5]}
74... Rg5+ {[%clk 0:00:03.9]} 75. Bd5 {[%clk 0:00:04]} 75... Rg3 {[%clk
0:00:03.1]} 76. Re4+ {[%clk 0:00:03.9]} 76... Kd3 {[%clk 0:00:02.6]} 77. Ra4
{[%clk 0:00:03.5]} 77... Ke3 {[%clk 0:00:01.8]} 78. Kd6 {[%clk 0:00:03.1]} 78...
Rg6+ {[%clk 0:00:01.3]} 79. Ke5 {[%clk 0:00:03.2]} 79... Rg5+ {[%clk 0:00:01.6]}
80. Ke6 {[%clk 0:00:03.7]} 80... Rg3 {[%clk 0:00:01.6]} 81. Ke5 {[%clk 0:00:03]}
81... Kf2 {[%clk 0:00:02.5]} 82. Kf4 {[%clk 0:00:02.7]} 82... Rg5 {[%clk
0:00:02.8]} 83. Ra2+ {[%clk 0:00:02.9]} 83... Ke1 {[%clk 0:00:02.1]} 84. Kxg5
{[%clk 0:00:03.3]} 1-0

[Event "*** Titled Tuesday Blitz"]
[Site "Chess.com"]
[Date "2020.04.07"]
[Round "6"]
[White "TigrVShlyape"]
[Black "Evgeny81"]
[Result "1-0"]
[WhiteElo "2852"]
[BlackElo "2760"]
[TimeControl "180+1"]
[EndTime "14:10:17 PDT"]
[Termination "TigrVShlyape won by resignation"]

1. d4 {[%clk 0:03:00.9]} 1... d5 {[%clk 0:02:59.2]} 2. Nf3 {[%clk 0:03:00.8]}
2... Nf6 {[%clk 0:02:58.4]} 3. Bf4 {[%clk 0:03:00.6]} 3... Bg4 {[%clk
0:02:57.1]} 4. Nbd2 {[%clk 0:02:57.7]} 4... e6 {[%clk 0:02:55]} 5. e3 {[%clk
0:02:52.5]} 5... Nbd7 {[%clk 0:02:54.3]} 6. c4 {[%clk 0:02:52]} 6... c6 {[%clk
0:02:54.6]} 7. Qb3 {[%clk 0:02:51]} 7... Qc8 {[%clk 0:02:51.9]} 8. h3 {[%clk
0:02:49.9]} 8... Bxf3 {[%clk 0:02:51.9]} 9. Nxf3 {[%clk 0:02:49.1]} 9... a5
{[%clk 0:02:50.3]} 10. a3 {[%clk 0:02:48.7]} 10... a4 {[%clk 0:02:50]} 11. Qc2
{[%clk 0:02:47.1]} 11... Be7 {[%clk 0:02:50.4]} 12. Bd3 {[%clk 0:02:44.8]} 12...
O-O {[%clk 0:02:50.5]} 13. O-O {[%clk 0:02:44.8]} 13... Bd8 {[%clk 0:02:49.5]}
14. Ne5 {[%clk 0:02:10.4]} 14... Bc7 {[%clk 0:02:46.8]} 15. Rad1 {[%clk
0:02:08]} 15... h6 {[%clk 0:02:46.4]} 16. cxd5 {[%clk 0:01:50]} 16... Nxd5
{[%clk 0:02:41.6]} 17. Bg3 {[%clk 0:01:47.7]} 17... Nxe5 {[%clk 0:02:38.7]} 18.
dxe5 {[%clk 0:01:45.4]} 18... Bb6 {[%clk 0:02:29.5]} 19. Qe2 {[%clk 0:01:43.3]}
19... Ne7 {[%clk 0:02:27]} 20. Qg4 {[%clk 0:01:38.7]} 20... Nf5 {[%clk
0:02:26.4]} 21. Bf4 {[%clk 0:01:34]} 21... Kh8 {[%clk 0:02:16.3]} 22. h4 {[%clk
0:01:33]} 22... Rd8 {[%clk 0:02:13.2]} 23. h5 {[%clk 0:01:30.6]} 23... Ra5
{[%clk 0:02:02]} 24. Bc2 {[%clk 0:01:22.3]} 24... Rxd1 {[%clk 0:01:59.2]} 25.
Rxd1 {[%clk 0:01:21.6]} 25... Rb5 {[%clk 0:01:44.2]} 26. Rb1 {[%clk 0:01:14.1]}
26... Ra5 {[%clk 0:01:34]} 27. Qd1 {[%clk 0:01:09.5]} 27... Rd5 {[%clk
0:01:30.2]} 28. Qf3 {[%clk 0:01:07]} 28... Ra5 {[%clk 0:01:26.8]} 29. Qe4 {[%clk
0:01:05.7]} 29... Qg8 {[%clk 0:01:21.8]} 30. Bxa4 {[%clk 0:01:03.3]} 30... Ne7
{[%clk 0:01:21.1]} 31. Bc2 {[%clk 0:00:59.7]} 31... Ra8 {[%clk 0:01:19.6]} 32.
Rd1 {[%clk 0:00:53.1]} 32... Nd5 {[%clk 0:01:19.7]} 33. Bg3 {[%clk 0:00:44.8]}
33... Rd8 {[%clk 0:01:15.7]} 34. Qf3 {[%clk 0:00:39.4]} 34... Qe8 {[%clk
0:01:10.6]} 35. Bh4 {[%clk 0:00:38.5]} 35... Rd7 {[%clk 0:01:09.8]} 36. Qe4
{[%clk 0:00:35.8]} 36... Qg8 {[%clk 0:01:09]} 37. Rd3 {[%clk 0:00:32.5]} 37...
Bd8 {[%clk 0:01:08.3]} 38. Bg3 {[%clk 0:00:25.6]} 38... Be7 {[%clk 0:01:08]} 39.
Qf3 {[%clk 0:00:24.7]} 39... Rd8 {[%clk 0:01:03.7]} 40. e4 {[%clk 0:00:22.9]}
40... Nc7 {[%clk 0:00:59]} 41. Rxd8 {[%clk 0:00:22.1]} 41... Bxd8 {[%clk
0:00:59.7]} 42. Bf4 {[%clk 0:00:21.9]} 42... Qe8 {[%clk 0:00:56.7]} 43. Qd3
{[%clk 0:00:20.9]} 43... Be7 {[%clk 0:00:52.8]} 44. Be3 {[%clk 0:00:21.2]} 44...
Na6 {[%clk 0:00:50.2]} 45. b4 {[%clk 0:00:20.4]} 45... Nc7 {[%clk 0:00:45.2]}
46. Bb3 {[%clk 0:00:20.6]} 46... Kg8 {[%clk 0:00:41]} 47. Bc4 {[%clk 0:00:20.7]}
47... Kf8 {[%clk 0:00:39.8]} 48. g3 {[%clk 0:00:21.1]} 48... Qa8 {[%clk
0:00:39.5]} 49. Kg2 {[%clk 0:00:20.9]} 49... Qb8 {[%clk 0:00:38.7]} 50. Qd7
{[%clk 0:00:20.4]} 50... Ne8 {[%clk 0:00:36.7]} 51. Qd4 {[%clk 0:00:19.1]} 51...
Qa8 {[%clk 0:00:36.3]} 52. Qa7 {[%clk 0:00:18.9]} 52... Qc8 {[%clk 0:00:35.7]}
53. f4 {[%clk 0:00:17.7]} 53... Nc7 {[%clk 0:00:34.3]} 54. Qd4 {[%clk
0:00:14.2]} 54... Nb5 {[%clk 0:00:33.9]} 55. Qd3 {[%clk 0:00:14.3]} 55... Nc7
{[%clk 0:00:31.1]} 56. f5 {[%clk 0:00:14.5]} 56... exf5 {[%clk 0:00:29.3]} 57.
exf5 {[%clk 0:00:14.5]} 57... Nd5 {[%clk 0:00:29.7]} 58. f6 {[%clk 0:00:14.6]}
58... gxf6 {[%clk 0:00:29.3]} 59. Bxh6+ {[%clk 0:00:14.2]} 59... Ke8 {[%clk
0:00:29.4]} 60. Bxd5 {[%clk 0:00:10.9]} 60... cxd5 {[%clk 0:00:29.7]} 61. exf6
{[%clk 0:00:11]} 61... Bxf6 {[%clk 0:00:28.2]} 62. Qxd5 {[%clk 0:00:10.7]} 62...
Qc2+ {[%clk 0:00:27.9]} 63. Kh3 {[%clk 0:00:09.4]} 63... Qc8+ {[%clk 0:00:23.1]}
64. Kg2 {[%clk 0:00:06.3]} 64... Qc2+ {[%clk 0:00:23]} 65. Kf3 {[%clk
0:00:05.2]} 65... Qc3+ {[%clk 0:00:20.5]} 66. Be3 {[%clk 0:00:05.3]} 66... Qa1
{[%clk 0:00:16.5]} 67. Kg2 {[%clk 0:00:04.1]} 67... Qb2+ {[%clk 0:00:15.1]} 68.
Kh3 {[%clk 0:00:03.8]} 68... Kf8 {[%clk 0:00:15.6]} 69. h6 {[%clk 0:00:02.7]}
69... Kg8 {[%clk 0:00:16]} 70. Qxb7 {[%clk 0:00:02.1]} 70... Qa1 {[%clk
0:00:13.3]} 71. Qf3 {[%clk 0:00:02.4]} 71... Qe5 {[%clk 0:00:11.6]} 72. Qg4+
{[%clk 0:00:02.5]} 72... Kh7 {[%clk 0:00:10.8]} 73. Bf4 {[%clk 0:00:03.4]} 73...
Qa1 {[%clk 0:00:10.4]} 74. Qf3 {[%clk 0:00:03.5]} 74... Qd4 {[%clk 0:00:08.4]}
75. b5 {[%clk 0:00:02.9]} 75... Qd7+ {[%clk 0:00:08.3]} 76. g4 {[%clk
0:00:01.5]} 76... Qxb5 {[%clk 0:00:08.4]} 77. Qe4+ {[%clk 0:00:02.4]} 77... Kg8
{[%clk 0:00:07.6]} 78. g5 {[%clk 0:00:03.3]} 78... Qf1+ {[%clk 0:00:07.3]} 79.
Kg4 {[%clk 0:00:03.1]} 79... Qg1+ {[%clk 0:00:07]} 80. Kf5 {[%clk 0:00:02.9]}
80... Ba1 {[%clk 0:00:06.2]} 81. Qe8+ {[%clk 0:00:03.8]} 81... Kh7 {[%clk
0:00:05.8]} 82. Qxf7+ {[%clk 0:00:04.7]} 82... Kh8 {[%clk 0:00:05.4]} 83. Qe8+
{[%clk 0:00:05.6]} 83... Kh7 {[%clk 0:00:05.4]} 84. g6+ {[%clk 0:00:06.5]} 1-0